[Event "*** Titled Tuesday 3|2 Blitz (Late)"]
[Site "Chess.com"]
[Date "2017.01.03"]
[Round "5"]
[White "AdrianaNikolova"]
[Black "yian123"]
[Result "1/2-1/2"]
[WhiteElo "2264"]
[BlackElo "2375"]
[TimeControl "180+2"]
[EndTime "18:01:11 PST"]
[Termination "Game drawn by repetition"]

1. e4 {[%clk 0:03:01.1]} 1... e5 {[%clk 0:03:00.6]} 2. Nf3 {[%clk 0:03:01.4]}
2... Nc6 {[%clk 0:03:01.8]} 3. Nc3 {[%clk 0:03:00.7]} 3... Nf6 {[%clk
0:03:01.8]} 4. Bb5 {[%clk 0:03:00.1]} 4... Bd6 {[%clk 0:03:01.9]} 5. d3 {[%clk
0:02:59.1]} 5... a6 {[%clk 0:03:02.2]} 6. Ba4 {[%clk 0:03:00]} 6... O-O {[%clk
0:03:01.2]} 7. a3 {[%clk 0:03:00.5]} 7... Re8 {[%clk 0:02:55.1]} 8. g4 {[%clk
0:03:00.7]} 8... Nxg4 {[%clk 0:02:50]} 9. Rg1 {[%clk 0:03:01.3]} 9... Nf6 {[%clk
0:02:50.9]} 10. Bh6 {[%clk 0:03:00.3]} 10... g6 {[%clk 0:02:51.5]} 11. Bg5
{[%clk 0:02:53.9]} 11... Be7 {[%clk 0:02:40.4]} 12. h4 {[%clk 0:02:48.7]} 12...
d6 {[%clk 0:02:36]} 13. Qd2 {[%clk 0:02:47.8]} 13... Be6 {[%clk 0:02:32.9]} 14.
O-O-O {[%clk 0:02:47.6]} 14... b5 {[%clk 0:02:20]} 15. Bb3 {[%clk 0:02:47.7]}
15... Bxb3 {[%clk 0:02:19.3]} 16. cxb3 {[%clk 0:02:49.6]} 16... Nd4 {[%clk
0:02:20.4]} 17. Nxd4 {[%clk 0:02:46.3]} 17... exd4 {[%clk 0:02:22.3]} 18. Nd5
{[%clk 0:02:32.5]} 18... Nxd5 {[%clk 0:02:12.6]} 19. exd5 {[%clk 0:02:34.4]}
19... Bxg5 {[%clk 0:02:13]} 20. Rxg5 {[%clk 0:02:34.4]} 20... Re5 {[%clk
0:02:11.7]} 21. Qf4 {[%clk 0:02:27.8]} 21... Qe7 {[%clk 0:02:08.7]} 22. Qxd4
{[%clk 0:02:06.9]} 22... Rxg5 {[%clk 0:02:07.2]} 23. hxg5 {[%clk 0:02:08.8]}
23... Qxg5+ {[%clk 0:02:07.9]} 24. f4 {[%clk 0:02:09.4]} 24... Qe7 {[%clk
0:01:50.6]} 25. Rd2 {[%clk 0:02:06.9]} 25... Re8 {[%clk 0:01:49.3]} 26. Kc2
{[%clk 0:02:05.3]} 26... Qe3 {[%clk 0:01:44.1]} 27. Qc3 {[%clk 0:02:01]} 27...
Qxf4 {[%clk 0:01:28.6]} 28. Qxc7 {[%clk 0:01:59.7]} 28... Qf5 {[%clk 0:01:18.3]}
29. Kb1 {[%clk 0:01:46.1]} 29... Qxd5 {[%clk 0:01:13.3]} 30. Ka2 {[%clk
0:01:45.6]} 30... h5 {[%clk 0:01:09.6]} 31. Rf2 {[%clk 0:01:36.7]} 31... Qe6
{[%clk 0:01:02.9]} 32. d4 {[%clk 0:01:35.7]} 32... Rc8 {[%clk 0:00:55.3]} 33.
Qb6 {[%clk 0:01:29.6]} 33... Rc1 {[%clk 0:00:48.2]} 34. Qd8+ {[%clk 0:01:08.2]}
34... Kg7 {[%clk 0:00:38.9]} 35. Qg5 {[%clk 0:01:03.5]} 35... Rd1 {[%clk
0:00:33.4]} 36. Qf4 {[%clk 0:00:57.4]} 36... a5 {[%clk 0:00:30.4]} 37. Qf3
{[%clk 0:00:49.5]} 37... Rxd4 {[%clk 0:00:16.8]} 38. Qc3 {[%clk 0:00:50.5]}
38... Qe5 {[%clk 0:00:17.5]} 39. Qxa5 {[%clk 0:00:49.6]} 39... h4 {[%clk
0:00:11.4]} 40. Qa7 {[%clk 0:00:48]} 40... Rf4 {[%clk 0:00:11.7]} 41. Rh2 {[%clk
0:00:47.3]} 41... g5 {[%clk 0:00:10.1]} 42. Qd7 {[%clk 0:00:44.8]} 42... Rf3
{[%clk 0:00:10.1]} 43. Rg2 {[%clk 0:00:44.6]} 43... Qd5 {[%clk 0:00:10.7]} 44.
Rg1 {[%clk 0:00:36.7]} 44... Qxb3+ {[%clk 0:00:10.7]} 45. Ka1 {[%clk 0:00:35.9]}
45... Qd5 {[%clk 0:00:11.8]} 46. Qe7 {[%clk 0:00:32.3]} 46... Rg3 {[%clk
0:00:10.5]} 47. Rf1 {[%clk 0:00:31.1]} 47... Rd3 {[%clk 0:00:09.5]} 48. Qf6+
{[%clk 0:00:31]} 48... Kg8 {[%clk 0:00:10.5]} 49. Qd8+ {[%clk 0:00:27.3]} 49...
Kh7 {[%clk 0:00:11.6]} 50. Qf6 {[%clk 0:00:19.1]} 50... Rd1+ {[%clk 0:00:12.6]}
51. Rxd1 {[%clk 0:00:20.1]} 51... Qxd1+ {[%clk 0:00:14.5]} 52. Ka2 {[%clk
0:00:22]} 52... Qd5+ {[%clk 0:00:15.9]} 53. Ka1 {[%clk 0:00:23.1]} 53... h3
{[%clk 0:00:17]} 54. Qf2 {[%clk 0:00:21.8]} 54... Qe6 {[%clk 0:00:16.8]} 55. Qg3
{[%clk 0:00:20.2]} 55... g4 {[%clk 0:00:16.8]} 56. Qh4+ {[%clk 0:00:21.1]} 56...
Kg7 {[%clk 0:00:17.6]} 57. Qg5+ {[%clk 0:00:21.6]} 57... Qg6 {[%clk 0:00:19]}
58. Qf4 {[%clk 0:00:20.7]} 58... g3 {[%clk 0:00:18.3]} 59. Qd4+ {[%clk
0:00:21.8]} 59... f6 {[%clk 0:00:18.7]} 60. Qxd6 {[%clk 0:00:22.3]} 60... g2
{[%clk 0:00:19.3]} 61. Qd7+ {[%clk 0:00:22.1]} 61... Kh6 {[%clk 0:00:19.9]} 62.
Qxh3+ {[%clk 0:00:23.1]} 62... Kg7 {[%clk 0:00:20.5]} 63. Qd7+ {[%clk
0:00:23.9]} 63... Kf8 {[%clk 0:00:21.5]} 64. Qd8+ {[%clk 0:00:23.1]} 64... Kf7
{[%clk 0:00:22.5]} 65. Qd7+ {[%clk 0:00:24.4]} 65... Kg8 {[%clk 0:00:23.6]} 66.
Qe6+ {[%clk 0:00:22.7]} 66... Kg7 {[%clk 0:00:24.5]} 67. Qd7+ {[%clk 0:00:23.7]}
67... Kh6 {[%clk 0:00:24.6]} 68. Qh3+ {[%clk 0:00:24.5]} 68... Kg7 {[%clk
0:00:25.8]} 69. Qd7+ {[%clk 0:00:25.2]} 69... Kh8 {[%clk 0:00:27.2]} 70. Qh3+
{[%clk 0:00:23]} 70... Kg8 {[%clk 0:00:27.7]} 71. Qc8+ {[%clk 0:00:23.7]} 71...
Kh7 {[%clk 0:00:22.3]} 72. Qh3+ {[%clk 0:00:23.7]} 72... Kg7 {[%clk 0:00:20.6]}
73. Qd7+ {[%clk 0:00:24.4]} 73... Qf7 {[%clk 0:00:18.6]} 74. Qg4+ {[%clk
0:00:24.3]} 74... Qg6 {[%clk 0:00:17.7]} 75. Qd7+ {[%clk 0:00:25.1]} 1/2-1/2

[Event "*** Titled Tuesday 3|2 Blitz (Late)"]
[Site "Chess.com"]
[Date "2017.01.03"]
[Round "5"]
[White "MaestroASK"]
[Black "yurisolo"]
[Result "1/2-1/2"]
[WhiteElo "2472"]
[BlackElo "2455"]
[TimeControl "180+2"]
[EndTime "18:01:57 PST"]
[Termination "Game drawn - insufficient material"]

1. g3 {[%clk 0:03:01.2]} 1... d5 {[%clk 0:03:00.9]} 2. d3 {[%clk 0:03:01.6]}
2... c6 {[%clk 0:03:01.6]} 3. e4 {[%clk 0:03:02.2]} 3... e5 {[%clk 0:03:00.2]}
4. Bg2 {[%clk 0:03:01.7]} 4... Nf6 {[%clk 0:02:57.3]} 5. f3 {[%clk 0:03:01.6]}
5... Bc5 {[%clk 0:02:55.5]} 6. Nh3 {[%clk 0:03:01.5]} 6... O-O {[%clk
0:02:55.4]} 7. Nd2 {[%clk 0:03:01.3]} 7... Nbd7 {[%clk 0:02:53.1]} 8. Qe2 {[%clk
0:03:01.2]} 8... Re8 {[%clk 0:02:54.3]} 9. Nf2 {[%clk 0:03:01.1]} 9... a5 {[%clk
0:02:50.4]} 10. a4 {[%clk 0:03:01]} 10... h6 {[%clk 0:02:45.8]} 11. O-O {[%clk
0:03:00.8]} 11... Qc7 {[%clk 0:02:47.2]} 12. Nb3 {[%clk 0:02:59.8]} 12... Bf8
{[%clk 0:02:46.6]} 13. Bd2 {[%clk 0:02:58.4]} 13... g6 {[%clk 0:02:42]} 14. Rfd1
{[%clk 0:02:51.9]} 14... Bg7 {[%clk 0:02:42.7]} 15. Qe1 {[%clk 0:02:48.5]} 15...
b6 {[%clk 0:02:43.4]} 16. Rdb1 {[%clk 0:02:45.7]} 16... Bb7 {[%clk 0:02:43.8]}
17. Qc1 {[%clk 0:02:44.2]} 17... Kh7 {[%clk 0:02:43.7]} 18. Bf1 {[%clk
0:02:39.5]} 18... c5 {[%clk 0:02:43.9]} 19. c4 {[%clk 0:02:39.5]} 19... d4
{[%clk 0:02:41.9]} 20. Qe1 {[%clk 0:02:36.8]} 20... Nh5 {[%clk 0:02:36.8]} 21.
Qe2 {[%clk 0:02:29.5]} 21... Qd6 {[%clk 0:02:23.6]} 22. Bg2 {[%clk 0:02:26.8]}
22... f5 {[%clk 0:02:14.3]} 23. Be1 {[%clk 0:02:15.2]} 23... Ndf6 {[%clk
0:02:04.5]} 24. Nd2 {[%clk 0:02:14.9]} 24... Re7 {[%clk 0:01:59.1]} 25. Bh3
{[%clk 0:02:13.2]} 25... Bc8 {[%clk 0:01:57.4]} 26. Qf1 {[%clk 0:02:11]} 26...
Bd7 {[%clk 0:01:55.6]} 27. b3 {[%clk 0:02:08.1]} 27... Rf8 {[%clk 0:01:56.2]}
28. Qg2 {[%clk 0:02:06.9]} 28... Ref7 {[%clk 0:01:57.4]} 29. Ra2 {[%clk
0:02:04.2]} 29... Qc6 {[%clk 0:01:54.8]} 30. Nh1 {[%clk 0:01:52.3]} 30... fxe4
{[%clk 0:01:50.7]} 31. Nxe4 {[%clk 0:01:45.2]} 31... Bxh3 {[%clk 0:01:45.5]} 32.
Qxh3 {[%clk 0:01:43.5]} 32... Ng8 {[%clk 0:01:42.1]} 33. Nd2 {[%clk 0:01:41.5]}
33... Ne7 {[%clk 0:01:36.6]} 34. Nf2 {[%clk 0:01:38.4]} 34... Nf5 {[%clk
0:01:37.2]} 35. Nfe4 {[%clk 0:01:35.9]} 35... Ne3 {[%clk 0:01:37.4]} 36. Bf2
{[%clk 0:01:35.8]} 36... Nf6 {[%clk 0:01:22.9]} 37. Re1 {[%clk 0:01:23.7]} 37...
Nxe4 {[%clk 0:01:22]} 38. dxe4 {[%clk 0:01:20.9]} 38... h5 {[%clk 0:01:17.9]}
39. Bxe3 {[%clk 0:01:19.8]} 39... dxe3 {[%clk 0:01:19.8]} 40. Rxe3 {[%clk
0:01:20]} 40... Bh6 {[%clk 0:01:21.1]} 41. Rd3 {[%clk 0:01:20.6]} 41... Bxd2
{[%clk 0:01:10.7]} 42. Raxd2 {[%clk 0:01:20.4]} 42... Rxf3 {[%clk 0:01:10.5]}
43. Qd7+ {[%clk 0:01:19.9]} 43... Qxd7 {[%clk 0:01:10.7]} 44. Rxd7+ {[%clk
0:01:16.7]} 44... Kh6 {[%clk 0:01:12.1]} 45. R7d3 {[%clk 0:01:14.8]} 45... h4
{[%clk 0:01:03.7]} 46. Kg2 {[%clk 0:01:13.1]} 46... Rf1 {[%clk 0:00:38.4]} 47.
gxh4 {[%clk 0:01:12.5]} 47... R1f4 {[%clk 0:00:36.8]} 48. Re2 {[%clk 0:01:05.9]}
48... R8f6 {[%clk 0:00:32.3]} 49. Rd5 {[%clk 0:01:01.2]} 49... Re6 {[%clk
0:00:31.9]} 50. Kg3 {[%clk 0:01:01.7]} 50... Kh5 {[%clk 0:00:32.5]} 51. h3
{[%clk 0:01:02.5]} 51... Rf1 {[%clk 0:00:30]} 52. Rd8 {[%clk 0:01:00.3]} 52...
Kh6 {[%clk 0:00:23.9]} 53. Rf2 {[%clk 0:01:00.8]} 53... Rg1+ {[%clk 0:00:24.2]}
54. Kh2 {[%clk 0:01:01.5]} 54... Rb1 {[%clk 0:00:21.7]} 55. Rf7 {[%clk 0:01:01]}
55... g5 {[%clk 0:00:15.4]} 56. hxg5+ {[%clk 0:01:00.1]} 56... Kxg5 {[%clk
0:00:17.3]} 57. Rg8+ {[%clk 0:00:57.1]} 57... Kh6 {[%clk 0:00:15.4]} 58. Rf3
{[%clk 0:00:55.6]} 58... Rg6 {[%clk 0:00:09.5]} 59. Rxg6+ {[%clk 0:00:55]} 59...
Kxg6 {[%clk 0:00:11.4]} 60. Rd3 {[%clk 0:00:55.3]} 60... Re1 {[%clk 0:00:08.9]}
61. Rd6+ {[%clk 0:00:54.6]} 61... Kg5 {[%clk 0:00:10.4]} 62. Rxb6 {[%clk
0:00:53.8]} 62... Re3 {[%clk 0:00:07.3]} 63. Rb5 {[%clk 0:00:53.4]} 63... Kf4
{[%clk 0:00:08.7]} 64. h4 {[%clk 0:00:50.3]} 64... Re2+ {[%clk 0:00:05.9]} 65.
Kh3 {[%clk 0:00:49.4]} 65... Re3+ {[%clk 0:00:06.8]} 66. Kg2 {[%clk 0:00:49.9]}
66... Re2+ {[%clk 0:00:07.3]} 67. Kf1 {[%clk 0:00:49.9]} 67... Rb2 {[%clk
0:00:06.9]} 68. h5 {[%clk 0:00:48.5]} 68... Kxe4 {[%clk 0:00:08.2]} 69. h6
{[%clk 0:00:44.9]} 69... Rh2 {[%clk 0:00:07.5]} 70. Rxc5 {[%clk 0:00:44.4]}
70... Rxh6 {[%clk 0:00:08.3]} 71. Rxa5 {[%clk 0:00:44.7]} 71... Kf3 {[%clk
0:00:09.7]} 72. Ke1 {[%clk 0:00:44.5]} 72... e4 {[%clk 0:00:11.1]} 73. Re5
{[%clk 0:00:37.6]} 73... Ke3 {[%clk 0:00:11.6]} 74. Kd1 {[%clk 0:00:36.7]} 74...
Kd3 {[%clk 0:00:13]} 75. Kc1 {[%clk 0:00:32.9]} 75... Kc3 {[%clk 0:00:14]} 76.
Kd1 {[%clk 0:00:31.3]} 76... Kxb3 {[%clk 0:00:10.2]} 77. Rxe4 {[%clk 0:00:30]}
77... Kxa4 {[%clk 0:00:11.5]} 78. Kc2 {[%clk 0:00:30.5]} 78... Rh3 {[%clk
0:00:11.4]} 79. Rd4 {[%clk 0:00:25.1]} 79... Kb4 {[%clk 0:00:12.5]} 80. Rd3
{[%clk 0:00:25.6]} 80... Rh2+ {[%clk 0:00:13.2]} 81. Rd2 {[%clk 0:00:26.4]}
81... Rxd2+ {[%clk 0:00:14]} 82. Kxd2 {[%clk 0:00:17.8]} 82... Kxc4 {[%clk
0:00:15]} 1/2-1/2

[Event "*** Titled Tuesday 3|2 Blitz (Late)"]
[Site "Chess.com"]
[Date "2017.01.03"]
[Round "6"]
[White "Ksenia_Legenko"]
[Black "beastfromweast"]
[Result "0-1"]
[WhiteElo "2051"]
[BlackElo "2279"]
[TimeControl "180+2"]
[EndTime "18:07:19 PST"]
[Termination "beastfromweast won by resignation"]

1. d4 {[%clk 0:03:02]} 1... d5 {[%clk 0:03:00.8]} 2. c4 {[%clk 0:03:02.6]} 2...
e6 {[%clk 0:03:02.1]} 3. Nf3 {[%clk 0:03:03.6]} 3... Be7 {[%clk 0:03:03.5]} 4.
g3 {[%clk 0:03:04.9]} 4... Nf6 {[%clk 0:03:05.1]} 5. Bg2 {[%clk 0:03:06.4]} 5...
O-O {[%clk 0:03:06.7]} 6. O-O {[%clk 0:03:07.9]} 6... Nbd7 {[%clk 0:03:07.9]} 7.
Nbd2 {[%clk 0:03:08.2]} 7... c6 {[%clk 0:03:09.2]} 8. Qc2 {[%clk 0:03:09.4]}
8... b6 {[%clk 0:03:10.4]} 9. e4 {[%clk 0:03:10.3]} 9... dxc4 {[%clk 0:03:12]}
10. Nxc4 {[%clk 0:03:11.2]} 10... Ba6 {[%clk 0:03:13.6]} 11. Rd1 {[%clk
0:03:11.4]} 11... c5 {[%clk 0:03:13.9]} 12. d5 {[%clk 0:03:03.5]} 12... exd5
{[%clk 0:03:15.8]} 13. exd5 {[%clk 0:03:01.8]} 13... Bxc4 {[%clk 0:03:17.7]} 14.
Qxc4 {[%clk 0:03:02.5]} 14... Bd6 {[%clk 0:03:19.6]} 15. Be3 {[%clk 0:02:54]}
15... Re8 {[%clk 0:03:19.9]} 16. a3 {[%clk 0:02:50.4]} 16... Rb8 {[%clk
0:03:16.7]} 17. Qh4 {[%clk 0:02:47.7]} 17... b5 {[%clk 0:03:01]} 18. Rac1 {[%clk
0:02:40.6]} 18... c4 {[%clk 0:03:00.7]} 19. Bxa7 {[%clk 0:02:39.6]} 19... Ra8
{[%clk 0:03:00.6]} 20. Be3 {[%clk 0:02:39.3]} 20... Bc5 {[%clk 0:02:58.6]} 21.
Bd4 {[%clk 0:02:23.2]} 21... Re4 {[%clk 0:02:55.6]} 22. Qh3 {[%clk 0:02:13.6]}
22... Qb6 {[%clk 0:02:52.6]} 23. Bxc5 {[%clk 0:02:00.8]} 23... Nxc5 {[%clk
0:02:50.3]} 24. Ng5 {[%clk 0:01:41.5]} 24... Re2 {[%clk 0:02:48.9]} 25. Bf3
{[%clk 0:01:37.8]} 25... Rxb2 {[%clk 0:02:40.1]} 26. d6 {[%clk 0:01:28.9]} 26...
Nd3 {[%clk 0:02:38.3]} 27. Rf1 {[%clk 0:01:06.7]} 27... Nxf2 {[%clk 0:02:33.7]}
28. Qg2 {[%clk 0:01:00.7]} 28... Nh3+ {[%clk 0:02:31.2]} 29. Kh1 {[%clk
0:01:02.1]} 29... Rxg2 {[%clk 0:02:21.9]} 30. Bxg2 {[%clk 0:00:59.8]} 30... Qg1+
{[%clk 0:02:21.7]} 0-1

[Event "*** Titled Tuesday 3|2 Blitz (Late)"]
[Site "Chess.com"]
[Date "2017.01.03"]
[Round "6"]
[White "QuintilianoR"]
[Black "fastestmindalive"]
[Result "0-1"]
[WhiteElo "2514"]
[BlackElo "2441"]
[TimeControl "180+2"]
[EndTime "18:07:42 PST"]
[Termination "fastestmindalive won by resignation"]

1. d4 {[%clk 0:03:02]} 1... Nf6 {[%clk 0:02:56.9]} 2. Nf3 {[%clk 0:03:03.1]}
2... e6 {[%clk 0:02:52.4]} 3. Bf4 {[%clk 0:03:03.7]} 3... c5 {[%clk 0:02:51.4]}
4. e3 {[%clk 0:03:04.2]} 4... b6 {[%clk 0:02:51.8]} 5. c3 {[%clk 0:03:03.9]}
5... Bb7 {[%clk 0:02:53.2]} 6. Nbd2 {[%clk 0:03:05]} 6... Be7 {[%clk 0:02:54.5]}
7. h3 {[%clk 0:03:06.1]} 7... d6 {[%clk 0:02:55.2]} 8. Bd3 {[%clk 0:03:06.8]}
8... O-O {[%clk 0:02:56.4]} 9. O-O {[%clk 0:03:07.8]} 9... cxd4 {[%clk
0:02:55.2]} 10. exd4 {[%clk 0:03:08.8]} 10... Nbd7 {[%clk 0:02:55.5]} 11. Bh2
{[%clk 0:03:08.7]} 11... a6 {[%clk 0:02:56.2]} 12. a4 {[%clk 0:03:09.2]} 12...
h6 {[%clk 0:02:57.5]} 13. Re1 {[%clk 0:03:10.1]} 13... Re8 {[%clk 0:02:58.6]}
14. Nc4 {[%clk 0:03:10.8]} 14... Nf8 {[%clk 0:02:58.6]} 15. a5 {[%clk
0:03:11.5]} 15... b5 {[%clk 0:02:59.1]} 16. Nb6 {[%clk 0:03:12.3]} 16... Rb8
{[%clk 0:03:00.1]} 17. Nd2 {[%clk 0:03:04]} 17... N8d7 {[%clk 0:03:00.5]} 18.
Nxd7 {[%clk 0:03:01.3]} 18... Qxd7 {[%clk 0:03:02.1]} 19. c4 {[%clk 0:03:01.3]}
19... bxc4 {[%clk 0:03:00.4]} 20. Nxc4 {[%clk 0:03:03.2]} 20... Nd5 {[%clk
0:03:00]} 21. Rc1 {[%clk 0:02:26.8]} 21... Ba8 {[%clk 0:02:51.5]} 22. Qe2 {[%clk
0:02:21.3]} 22... Red8 {[%clk 0:02:42.2]} 23. Be4 {[%clk 0:02:20.1]} 23... Qb5
{[%clk 0:02:38.3]} 24. Red1 {[%clk 0:02:08]} 24... Bf8 {[%clk 0:02:32.7]} 25. f3
{[%clk 0:02:04.4]} 25... Rbc8 {[%clk 0:02:29.8]} 26. Rc2 {[%clk 0:01:56.9]}
26... Nb4 {[%clk 0:02:27.7]} 27. Bd3 {[%clk 0:01:41.9]} 27... Nxc2 {[%clk
0:02:14.1]} 28. Nxd6 {[%clk 0:01:41.2]} 28... Nxd4 {[%clk 0:02:05.5]} 29. Qf1
{[%clk 0:01:38.5]} 29... Qc5 {[%clk 0:02:00.3]} 30. Nxc8 {[%clk 0:01:34.2]}
30... Rxc8 {[%clk 0:01:53.6]} 31. Kh1 {[%clk 0:01:33.5]} 31... Nf5 {[%clk
0:01:51.1]} 32. Bxa6 {[%clk 0:01:33.5]} 32... Ne3 {[%clk 0:01:44.8]} 0-1

[Event "*** Titled Tuesday 3|2 Blitz (Late)"]
[Site "Chess.com"]
[Date "2017.01.03"]
[Round "6"]
[White "jbj"]
[Black "MattyDPerrine"]
[Result "1-0"]
[WhiteElo "2367"]
[BlackElo "2234"]
[TimeControl "180+2"]
[EndTime "18:07:53 PST"]
[Termination "jbj won by resignation"]

1. e4 {[%clk 0:03:02]} 1... c5 {[%clk 0:03:00.3]} 2. d4 {[%clk 0:03:03.1]} 2...
cxd4 {[%clk 0:03:01.4]} 3. c3 {[%clk 0:03:04.6]} 3... d3 {[%clk 0:02:59.7]} 4.
Bxd3 {[%clk 0:03:05.4]} 4... Nc6 {[%clk 0:02:59.8]} 5. c4 {[%clk 0:03:06.6]}
5... g6 {[%clk 0:03:01.2]} 6. Nf3 {[%clk 0:03:07.7]} 6... Bg7 {[%clk 0:03:02.7]}
7. O-O {[%clk 0:03:08.9]} 7... d6 {[%clk 0:03:04.2]} 8. h3 {[%clk 0:03:10]} 8...
Nf6 {[%clk 0:03:05.7]} 9. Nc3 {[%clk 0:03:11.4]} 9... O-O {[%clk 0:03:07.1]} 10.
Be3 {[%clk 0:03:12.7]} 10... Nd7 {[%clk 0:03:08.5]} 11. Rc1 {[%clk 0:03:13.8]}
11... Nc5 {[%clk 0:03:01.7]} 12. Bb1 {[%clk 0:03:14.5]} 12... Be6 {[%clk
0:02:59.8]} 13. b3 {[%clk 0:03:15.7]} 13... Qa5 {[%clk 0:02:59.7]} 14. Qd2
{[%clk 0:03:16.9]} 14... Rfd8 {[%clk 0:02:57.1]} 15. Bh6 {[%clk 0:03:15.9]}
15... Bh8 {[%clk 0:02:50.6]} 16. Ng5 {[%clk 0:03:05]} 16... Bd7 {[%clk
0:02:30.8]} 17. f4 {[%clk 0:02:57.1]} 17... Qb4 {[%clk 0:01:35.2]} 18. f5 {[%clk
0:02:54.2]} 18... Be8 {[%clk 0:01:35.3]} 19. fxg6 {[%clk 0:02:52]} 19... hxg6
{[%clk 0:01:35.2]} 20. Kh1 {[%clk 0:02:36]} 20... e6 {[%clk 0:01:18.1]} 21. Rf3
{[%clk 0:02:18.3]} 21... a5 {[%clk 0:01:12.8]} 22. Rcf1 {[%clk 0:02:14.6]} 22...
Ne5 {[%clk 0:01:13.8]} 23. Rg3 {[%clk 0:02:03.4]} 23... a4 {[%clk 0:01:08.2]}
24. Nd5 {[%clk 0:02:02.2]} 1-0

[Event "*** Titled Tuesday 3|2 Blitz (Late)"]
[Site "Chess.com"]
[Date "2017.01.03"]
[Round "6"]
[White "amurdercastle"]
[Black "JustKid"]
[Result "1-0"]
[WhiteElo "2348"]
[BlackElo "2240"]
[TimeControl "180+2"]
[EndTime "18:08:20 PST"]
[Termination "amurdercastle won by resignation"]

1. d4 {[%clk 0:03:02]} 1... Nf6 {[%clk 0:02:59.2]} 2. c4 {[%clk 0:03:01.7]} 2...
c5 {[%clk 0:03:00.6]} 3. d5 {[%clk 0:03:02.5]} 3... e6 {[%clk 0:03:02.5]} 4. Nc3
{[%clk 0:03:03.5]} 4... exd5 {[%clk 0:03:04.4]} 5. cxd5 {[%clk 0:03:05.4]} 5...
d6 {[%clk 0:03:06.3]} 6. Nf3 {[%clk 0:03:04.5]} 6... g6 {[%clk 0:03:07.9]} 7.
Bf4 {[%clk 0:03:06.1]} 7... a6 {[%clk 0:03:07.3]} 8. a4 {[%clk 0:03:07.3]} 8...
Bg7 {[%clk 0:03:09]} 9. h3 {[%clk 0:03:08.8]} 9... O-O {[%clk 0:03:10.6]} 10. e3
{[%clk 0:03:09.3]} 10... Ne8 {[%clk 0:03:08.6]} 11. Be2 {[%clk 0:03:06.1]} 11...
Nd7 {[%clk 0:03:10.1]} 12. O-O {[%clk 0:03:06.7]} 12... b6 {[%clk 0:03:10.9]}
13. Qb3 {[%clk 0:03:01.6]} 13... Rb8 {[%clk 0:03:10.4]} 14. Nd2 {[%clk
0:03:01.8]} 14... Ne5 {[%clk 0:03:09.5]} 15. Bh2 {[%clk 0:02:59.5]} 15... f5
{[%clk 0:03:01.7]} 16. Rfe1 {[%clk 0:02:57.3]} 16... Qh4 {[%clk 0:02:51.4]} 17.
Bxe5 {[%clk 0:02:47.3]} 17... Bxe5 {[%clk 0:02:49.6]} 18. Nf3 {[%clk 0:02:49.2]}
18... Qf6 {[%clk 0:02:46.2]} 19. Nxe5 {[%clk 0:02:50.4]} 19... dxe5 {[%clk
0:02:47.7]} 20. Rad1 {[%clk 0:02:40.3]} 20... Nd6 {[%clk 0:02:48.9]} 21. Bf1
{[%clk 0:02:21.6]} 21... Bd7 {[%clk 0:02:44.4]} 22. Bxa6 {[%clk 0:02:06.2]}
22... f4 {[%clk 0:02:40.2]} 23. exf4 {[%clk 0:01:58.5]} 23... Qxf4 {[%clk
0:02:40]} 24. Qc2 {[%clk 0:01:55.9]} 24... Bf5 {[%clk 0:02:38.8]} 25. Qd2 {[%clk
0:01:50.7]} 25... Qh4 {[%clk 0:02:38]} 26. Rxe5 {[%clk 0:01:46.5]} 26... c4
{[%clk 0:02:39.4]} 27. Qe3 {[%clk 0:01:39.3]} 27... Bd3 {[%clk 0:02:38.7]} 28.
Rxd3 {[%clk 0:01:26.8]} 28... cxd3 {[%clk 0:02:39.1]} 29. Bxd3 {[%clk
0:01:28.7]} 29... Rbe8 {[%clk 0:02:41]} 30. Re6 {[%clk 0:01:22.4]} 30... Kg7
{[%clk 0:02:14.4]} 31. Qe5+ {[%clk 0:01:19.8]} 31... Kg8 {[%clk 0:02:10.4]} 32.
Qxd6 {[%clk 0:01:17.3]} 32... Qxf2+ {[%clk 0:02:11.3]} 33. Kh2 {[%clk
0:01:18.8]} 33... Rxe6 {[%clk 0:02:09.4]} 34. dxe6 {[%clk 0:01:19.8]} 34... Re8
{[%clk 0:02:02]} 35. Bc4 {[%clk 0:01:12.6]} 35... Kg7 {[%clk 0:02:03.1]} 36. e7
{[%clk 0:01:12]} 36... Kh6 {[%clk 0:02:00.8]} 37. Bb5 {[%clk 0:01:01.5]} 37...
Rxe7 {[%clk 0:01:51.8]} 38. Qxe7 {[%clk 0:01:03.4]} 38... Qf4+ {[%clk
0:01:52.8]} 39. Kg1 {[%clk 0:01:04.2]} 39... Qc1+ {[%clk 0:01:54.7]} 40. Bf1
{[%clk 0:01:04.8]} 1-0

[Event "*** Titled Tuesday 3|2 Blitz (Late)"]
[Site "Chess.com"]
[Date "2017.01.03"]
[Round "6"]
[White "ChristopherYoo"]
[Black "nickmatta"]
[Result "1-0"]
[WhiteElo "2062"]
[BlackElo "2311"]
[TimeControl "180+2"]
[EndTime "18:09:04 PST"]
[Termination "ChristopherYoo won by resignation"]

1. e4 {[%clk 0:03:01.3]} 1... e5 {[%clk 0:03:01.1]} 2. Nf3 {[%clk 0:03:01.8]}
2... Nc6 {[%clk 0:03:02.6]} 3. Bb5 {[%clk 0:03:01.1]} 3... Bc5 {[%clk
0:03:03.7]} 4. O-O {[%clk 0:02:59.2]} 4... Nd4 {[%clk 0:03:05]} 5. Nxd4 {[%clk
0:02:59.4]} 5... Bxd4 {[%clk 0:03:06.9]} 6. c3 {[%clk 0:02:59]} 6... Bb6 {[%clk
0:03:08.4]} 7. d4 {[%clk 0:02:56.1]} 7... c6 {[%clk 0:03:09.3]} 8. Ba4 {[%clk
0:02:54.9]} 8... d6 {[%clk 0:03:10.6]} 9. Be3 {[%clk 0:02:51.5]} 9... Nf6 {[%clk
0:03:08.2]} 10. Nd2 {[%clk 0:02:51.7]} 10... Ng4 {[%clk 0:03:05.5]} 11. Qf3
{[%clk 0:02:32.7]} 11... O-O {[%clk 0:03:00]} 12. Nc4 {[%clk 0:02:24.2]} 12...
Nxe3 {[%clk 0:02:53.1]} 13. fxe3 {[%clk 0:02:15.4]} 13... Bc7 {[%clk 0:02:52.5]}
14. Bc2 {[%clk 0:02:11.2]} 14... Qe7 {[%clk 0:02:24.5]} 15. Rad1 {[%clk
0:02:04]} 15... b5 {[%clk 0:02:17.7]} 16. Nd2 {[%clk 0:02:03.6]} 16... a5 {[%clk
0:02:17.4]} 17. Qg3 {[%clk 0:01:58.7]} 17... a4 {[%clk 0:02:10.2]} 18. Nf3
{[%clk 0:01:54]} 18... Be6 {[%clk 0:01:40.9]} 19. d5 {[%clk 0:01:34.1]} 19...
Bd7 {[%clk 0:01:35]} 20. Nh4 {[%clk 0:01:22.1]} 20... Bb6 {[%clk 0:01:18.2]} 21.
dxc6 {[%clk 0:01:16.8]} 21... Be6 {[%clk 0:01:13.9]} 22. Nf5 {[%clk 0:01:10]}
22... Bxf5 {[%clk 0:01:14.4]} 23. exf5 {[%clk 0:01:03.8]} 23... f6 {[%clk
0:01:13.9]} 24. Be4 {[%clk 0:01:00]} 24... Kh8 {[%clk 0:01:09.7]} 25. Bd5 {[%clk
0:00:57.7]} 25... Qa7 {[%clk 0:01:06.4]} 26. Rd3 {[%clk 0:00:55.3]} 26... Rac8
{[%clk 0:01:05.2]} 27. Kh1 {[%clk 0:00:54.1]} 27... Qe7 {[%clk 0:00:43.7]} 28.
e4 {[%clk 0:00:54.2]} 28... Qa7 {[%clk 0:00:40.2]} 29. Qh4 {[%clk 0:00:54.2]}
29... Rfe8 {[%clk 0:00:32.3]} 30. Qxh7+ {[%clk 0:00:53.8]} 1-0